[Event "One Short Week GM-A 12-2024"]
[Site "Budapest"]
[Date "2024.12.16"]
[Round "2.4"]
[White "Sklokin, Sergey"]
[Black "Berczes, David"]
[Result "1-0"]
[ECO "B40"]
[WhiteElo "2329"]
[BlackElo "2407"]
[Annotator "RC"]
[PlyCount "141"]
[EventDate "2024.12.15"]
[EventType "tourn"]
[EventCountry "HUN"]
[SourceTitle "playchess.com"]
[Source "ChessBase"]
[SourceQuality "1"]
[TimeControl "5400+30"]

1. e4 {[%emt 0:00:07]} c5 {[%emt 0:18:35]} 2. Nf3 {[%emt 0:00:07]} e6 {[%emt 0:00:17]} 3. d4 {[%emt 0:00:09]} cxd4 {[%emt 0:00:09]} 4. Nxd4 {[%emt 0:00:06]} Nf6 {[%emt 0:00:07]} 5. Nc3 {[%emt 0:00:10]} Nc6 {[%emt 0:00:04]} 6. Qd3 {[%emt 0:00:11]} d5 {[%emt 0:09:43]} 7. exd5 {[%emt 0:00:11]} Nb4 {[%emt 0:00:06]} 8. Qg3 {[%emt 0:00:15]} Bc5 {[%emt 0:00:06]} 9. a3 {[%emt 0:00:17]} Bxd4 {[%emt 0:06:45]} 10. axb4 {[%emt 0:00:48]} O-O {[%emt 0:01:01]} 11. Bd3 {[%emt 0:03:26]} e5 {[%emt 0:04:03]} 12. Bg5 {[%emt 0:04:43]} h6 {[%emt 0:10:11]} 13. Bxf6 {[%emt 0:22:01]} Qxf6 {[%emt 0:01:54]} 14. Ne4 {[%emt 0:00:25]} Qd8 {[%emt 0:02:13]} 15. c3 {[%emt 0:02:03]} Bb6 {[%emt 0:00:20]} 16. Rd1 {[%emt 0:01:28]} f5 {[%emt 0:14:59]} 17. Nc5 {[%emt 0:02:36]} e4 {[%emt 0:00:10]} 18. Bc4 {[%emt 0:02:50]} f4 {[%emt 0:01:41]} 19. Qg6 {[%emt 0:00:05]} Bf5 {[%emt 0:00:26]} 20. Qh5 {[%emt 0:00:11]} Bxc5 {[%emt 0:01:06]} 21. bxc5 {[%emt 0:00:23]} Kh7 {[%emt 0:03:25]} 22. O-O {[%emt 0:05:11]} f3 {[%emt 0:05:28]} 23. g4 {[%emt 0:02:00]} g6 {[%emt 0:02:56]} 24. Qh3 {[%emt 0:00:39]} Qg5 {[%emt 0:00:28]} 25. Qg3 {[%emt 0:00:08]} Bxg4 {[%emt 0:00:27]} 26. d6 {[%emt 0:01:39]} h5 {[%emt 0:13:49]} 27. h3 {[%emt 0:04:06]} Rf4 {[%emt 0:01:23]} 28. Be6 {[%emt 0:00:06]} h4 {[%emt 0:02:06]} 29. Qxg4 {[%emt 0:00:19]} Rxg4+ 30. Bxg4 {[%emt 0:00:08]} Rf8 {[%emt 0:01:00]} 31. d7 {[%emt 0:00:51]} e3 {[%emt 0:00:17]} 32. fxe3 {[%emt 0:03:16]} f2+ 33. Rxf2 {[%emt 0:00:51]} Qxe3 {[%emt 0:00:41]} 34. Rdd2 {[%emt 0:00:06]} Qe1+ {[%emt 0:01:03]} 35. Kg2 {[%emt 0:00:07]} Qe4+ {[%emt 0:00:29]} 36. Rf3 {[%emt 0:00:43]} Rd8 {[%emt 0:00:30]} 37. Rd4 {[%emt 0:01:57]} Qe2+ {[%emt 0:00:30]} 38. Rf2 {[%emt 0:01:00]} Qe5 {[%emt 0:00:07]} 39. Rff4 {[%emt 0:01:24]} Qe3 {[%emt 0:00:47]} 40. Bf3 {[%emt 0:01:22]} Kg7 {[%emt 0:00:21]} 41. Bxb7 {[%emt 0:04:11]} g5 {[%emt 0:00:45]} 42. Rf3 {[%emt 0:00:50]} Qe2+ {[%emt 0:00:29]} 43. Rf2 {[%emt 0:00:14]} Qe5 {[%emt 0:00:14]} 44. Rd3 {[%emt 0:05:19]} Qxc5 {[%emt 0:00:41]} 45. Bf3 {[%emt 0:00:08]} Qe5 {[%emt 0:00:37]} 46. Bg4 {[%emt 0:00:24]} Qe4+ {[%emt 0:00:05]} 47. Rdf3 {[%emt 0:00:21]} Qd5 {[%emt 0:00:47]} 48. b4 {[%emt 0:00:12]} Rf8 {[%emt 0:00:37]} 49. c4 {[%emt 0:01:32]} Qe4 {[%emt 0:00:12]} 50. c5 {[%emt 0:00:33]} a6 {[%emt 0:00:26]} 51. Kg1 {[%emt 0:01:21]} Rxf3 {[%emt 0:00:39]} 52. Bxf3 {[%emt 0:00:19]} Qd4 {[%emt 0:00:44]} 53. c6 {[%emt 0:00:13]} Qd6 {[%emt 0:00:29]} 54. Rf1 {[%emt 0:00:26]} Qd4+ {[%emt 0:00:31]} 55. Kh1 {[%emt 0:00:17]} Qd3 {[%emt 0:00:15]} 56. Rf2 {[%emt 0:01:23]} Qd4 {[%emt 0:00:24]} 57. Kg1 {[%emt 0:00:17]} Qd6 {[%emt 0:00:41]} 58. Kf1 {[%emt 0:01:30]} Qd3+ {[%emt 0:00:19]} 59. Ke1 {[%emt 0:00:24]} Qb1+ {[%emt 0:00:45]} 60. Ke2 {[%emt 0:03:08]} Qc2+ {[%emt 0:00:04]} 61. Kf1 {[%emt 0:00:06]} Qd3+ {[%emt 0:00:07]} 62. Kg2 {[%emt 0:00:18]} Qd6 {[%emt 0:00:05]} 63. Kh1 {[%emt 0:00:08]} Qd4 {[%emt 0:00:37]} 64. Rc2 {[%emt 0:00:40]} Qd3 {[%emt 0:00:06]} 65. d8=Q {[%emt 0:00:31]} Qxf3+ {[%emt 0:01:15]} 66. Kg1 {[%emt 0:00:26]} Qg3+ {[%emt 0:01:00]} 67. Kf1 {[%emt 0:00:10]} Qxh3+ {[%emt 0:00:24]} 68. Ke1 {[%emt 0:00:11]} Qe3+ {[%emt 0:00:13]} 69. Kd1 {[%emt 0:00:06]} Qg1+ {[%emt 0:00:11]} 70. Kd2 {[%emt 0:00:06]} Qf2+ {[%emt 0:00:12]} 71. Kc3 {[%emt 0:00:06]} 1-0

[Event "One Short Week GM-A 12-2024"]
[Site "Budapest"]
[Date "2024.12.16"]
[Round "2.5"]
[White "Zverev, Lev"]
[Black "Aczel, Gergely"]
[Result "1-0"]
[ECO "B12"]
[WhiteElo "2441"]
[BlackElo "2485"]
[Annotator "RC"]
[PlyCount "101"]
[EventDate "2024.12.15"]
[EventType "tourn"]
[EventCountry "HUN"]
[SourceTitle "playchess.com"]
[Source "ChessBase"]
[SourceQuality "1"]
[TimeControl "5400+30"]

1. e4 {[%emt 0:05:21]} c6 {[%emt 0:00:03]} 2. d4 {[%emt 0:00:10]} d5 {[%emt 0:00:03]} 3. e5 {[%emt 0:00:05]} c5 {[%emt 0:00:05]} 4. Nf3 {[%emt 0:00:05]} cxd4 {[%emt 0:00:14]} 5. Qxd4 {[%emt 0:00:13]} Nc6 {[%emt 0:00:05]} 6. Qf4 {[%emt 0:00:06]} e6 {[%emt 0:00:07]} 7. Nc3 {[%emt 0:00:05]} Nb4 {[%emt 0:00:07]} 8. Qd2 {[%emt 0:00:04]} Ne7 {[%emt 0:22:14]} 9. h4 {[%emt 0:00:12]} f6 {[%emt 0:05:20]} 10. Bd3 {[%emt 0:05:18]} Nec6 {[%emt 0:04:20]} 11. exf6 {[%emt 0:03:03]} gxf6 {[%emt 0:01:33]} 12. a3 {[%emt 0:04:59]} Nxd3+ {[%emt 0:03:23]} 13. Qxd3 {[%emt 0:00:09]} d4 {[%emt 0:04:45]} 14. Ne2 {[%emt 0:01:18]} e5 {[%emt 0:00:09]} 15. c3 {[%emt 0:00:38]} Qe7 {[%emt 0:15:44]} 16. Nd2 {[%emt 0:09:17]} Bg4 {[%emt 0:07:00]} 17. f3 {[%emt 0:06:49]} Be6 {[%emt 0:00:47]} 18. cxd4 {[%emt 0:02:53]} O-O-O {[%emt 0:00:10]} 19. Ne4 {[%emt 0:00:42]} Rg8 {[%emt 0:03:11]} 20. O-O {[%emt 0:04:03]} h6 {[%emt 0:01:30]} 21. Qb5 {[%emt 0:11:41]} Qf7 {[%emt 0:08:03]} 22. Rf2 {[%emt 0:06:42]} f5 {[%emt 0:09:57]} 23. Be3 {[%emt 0:07:57]} Bc4 {[%emt 0:02:40]} 24. Qa4 {[%emt 0:00:02]} Bxe2 {[%emt 0:00:20]} 25. Rc1 {[%emt 0:00:05]} Bd3 {[%emt 0:03:09]} 26. d5 {[%emt 0:01:49]} Rxd5 {[%emt 0:01:09]} 27. Qxa7 {[%emt 0:00:17]} Bc4 {[%emt 0:05:25]} 28. Qa4 {[%emt 0:04:37]} Ra5 {[%emt 0:02:00]} 29. Qxc4 {[%emt 0:00:50]} Qxc4 30. Rxc4 {[%emt 0:00:07]} fxe4 {[%emt 0:00:06]} 31. fxe4 {[%emt 0:01:28]} Kb8 {[%emt 0:00:59]} 32. Rf7 {[%emt 0:01:51]} Bd6 {[%emt 0:01:15]} 33. Rf6 {[%emt 0:01:06]} Bf8 {[%emt 0:00:29]} 34. Rf7 {[%emt 0:04:24]} Ra6 {[%emt 0:00:32]} 35. Rc3 {[%emt 0:02:05]} Ra4 {[%emt 0:00:30]} 36. b4 {[%emt 0:00:30]} Bd6 {[%emt 0:00:32]} 37. Rd7 {[%emt 0:02:54]} Nd4 {[%emt 0:00:17]} 38. Kh2 {[%emt 0:00:50]} Nb5 {[%emt 0:00:28]} 39. Rd3 {[%emt 0:00:22]} Bc7 {[%emt 0:00:12]} 40. Bxh6 {[%emt 0:00:20]} Nxa3 {[%emt 0:00:26]} 41. Bg7 {[%emt 0:00:22]} Nb5 {[%emt 0:01:00]} 42. h5 {[%emt 0:00:11]} Ra6 {[%emt 0:00:29]} 43. h6 {[%emt 0:00:56]} Rg6 {[%emt 0:00:38]} 44. h7 {[%emt 0:00:22]} Re8 {[%emt 0:00:21]} 45. Rh3 {[%emt 0:00:36]} Rg4 {[%emt 0:00:31]} 46. Rf7 {[%emt 0:02:27]} Bd6 {[%emt 0:00:07]} 47. Bf8 {[%emt 0:00:31]} Rf4 {[%emt 0:01:04]} 48. Rxf4 {[%emt 0:00:49]} exf4 {[%emt 0:00:07]} 49. h8=Q {[%emt 0:00:47]} Rxf8 {[%emt 0:00:08]} 50. Qxf8+ {[%emt 0:00:07]} Bxf8 {[%emt 0:00:05]} 51. Rh8 {[%emt 0:00:04]} 1-0